bitfinex-derivatives/quotes_ETHF0:USTF0_20250727
["timestamp","ask_amount","ask_price","bid_price","bid_amount"]
[1753579562476,26.0415,3769.6,3769.0,3.2078]
[1753579562680,1.24041,3769.3,3769.2,0.2956]
[1753579562882,23.55961,3769.3,3769.2,0.2956]
[1753579563179,2.30364,3769.1,3769.0,3.5034]
[1753579563485,23.25144,3769.1,3769.0,4.951]
[1753579564485,0.4678,3769.3,3769.2,0.6812]
[1753579564684,1.1778,3769.5,3769.4,1.7432]
[1753579564989,22.96319,3769.5,3769.4,1.7432]
[1753579565176,23.25039,3769.5,3769.4,1.7432]
[1753579565377,23.25039,3769.5,3769.4,2.2736]
[1753579565378,22.72,3769.5,3769.4,2.2736]
[1753579565580,1.99534,3769.9,3769.8,0.4904]
[1753579565883,23.55854,3769.9,3769.8,0.6812]
[1753579566274,23.55854,3769.9,3769.8,1.4388]
[1753579568985,0.71,3769.6,3769.3,0.2956]
[1753579569184,2.3036,3769.4,3769.3,0.2956]
[1753579569784,2.3036,3769.4,3769.3,0.4864]
[1753579569985,2.3036,3769.4,3769.3,0.2956]
[1753579570376,1.83584,3769.1,3769.0,3.9654]
[1753579570582,23.55664,3769.1,3769.0,4.1562]
[1753579570783,23.55664,3769.1,3769.0,4.4528]
[1753579571377,23.55664,3769.1,3769.0,1.245]
[1753579574891,23.55664,3769.1,3769.0,1.7432]
[1753579575092,23.24844,3769.1,3769.0,1.7432]
[1753579576686,23.55664,3769.1,3769.0,1.7432]
[1753579576892,23.24844,3769.1,3769.0,1.7432]
[1753579577391,23.55664,3769.1,3769.0,1.245]
[1753579579289,23.55664,3769.1,3769.0,0.783]
[1753579579887,23.55664,3769.1,3769.0,1.245]
[1753579581285,23.55664,3769.1,3769.0,1.4388]
[1753579581589,23.55664,3769.1,3769.0,1.7432]
[1753579583498,23.55664,3769.1,3769.0,1.4388]
[1753579584889,23.55664,3769.1,3769.0,1.245]
[1753579585695,23.24844,3769.1,3769.0,1.7432]
[1753579586291,21.248,3769.1,3769.0,2.27366]
[1753579586597,0.81762,3769.3,3769.2,1.7432]
[1753579586792,22.27432,3769.3,3769.2,2.27363]
[1753579586986,22.27432,3769.3,3769.2,1.7432]
[1753579587193,22.74212,3769.3,3769.2,1.7432]
[1753579587495,23.24342,3769.3,3769.2,1.7432]
[1753579589305,23.55292,3769.3,3769.2,1.7432]
[1753579591596,23.55182,3769.3,3769.2,1.7624]
[1753579595109,22.78232,3769.3,3769.2,0.9846]
[1753579595408,23.55182,3769.3,3769.2,1.7624]
[1753579596503,0.3095,3769.9,3769.8,0.1892]
[1753579596703,22.06633,3769.9,3769.8,1.7344]
[1753579596909,21.77333,3769.9,3769.8,1.7344]
[1753579597404,22.06633,3769.9,3769.8,1.7344]
[1753579597609,22.73463,3769.9,3769.8,1.7344]
[1753579599109,1.49163,3769.9,3769.8,1.7344]
[1753579599305,22.73163,3769.9,3769.8,1.7344]
[1753579599511,3.2078,3770.0,3769.9,1.7344]
[1753579599712,3.2078,3770.0,3769.9,2.26473]
[1753579599911,24.4478,3770.0,3769.9,2.26473]
[1753579600312,3.2078,3770.0,3769.9,2.26473]
[1753579600613,4.23186,3770.4,3770.3,0.6915]
[1753579600911,25.6428503,3770.4,3770.3,1.7344]
[1753579601108,26.6406103,3770.4,3770.3,1.7344]
[1753579601409,26.6396103,3770.4,3770.3,1.7344]
[1753579601609,26.1093503,3770.4,3770.3,1.7344]
[1753579602012,3.2078,3770.4,3770.3,2.26467]
[1753579602311,3.2078,3770.8,3770.7,2.26462]
[1753579602505,25.15553265,3770.8,3770.7,2.26462]
[1753579602701,21.94773265,3770.8,3770.7,2.26462]
[1753579603312,22.24073265,3770.8,3770.7,1.7344]
[1753579603508,22.77093265,3770.8,3770.7,1.7344]
[1753579603813,1.52437,3770.4,3770.3,0.1892]
[1753579604003,22.76137,3770.4,3770.3,0.967]
[1753579604204,22.76137,3770.4,3770.3,1.1617]
[1753579604403,23.22887,3770.4,3770.3,1.7344]
[1753579604713,22.6986,3770.4,3770.3,1.7344]
[1753579604909,22.6986,3770.4,3770.3,2.26467]
[1753579605110,21.237,3770.4,3770.3,1.7344]
[1753579605511,23.22886,3770.4,3770.3,1.7344]
[1753579606710,23.53836,3770.4,3770.3,1.4483]
[1753579607110,2.30137,3770.3,3770.2,3.2078]
[1753579607312,1.2314,3770.1,3770.0,0.2866]
[1753579607511,23.5344,3770.1,3770.0,0.4758]
[1753579607712,23.5344,3770.1,3770.0,0.7834]
[1753579607911,2.30146,3769.7,3769.6,0.4968]
[1753579608219,2.30146,3769.7,3769.3,3.7046]
[1753579608220,2.3015,3769.4,3769.3,3.7046]
[1753579608421,23.5335,3769.4,3769.3,3.2078]
[1753579608916,23.5335,3769.4,3769.3,3.4944]
[1753579609216,23.5335,3769.4,3769.3,0.2866]
[1753579609921,23.5335,3769.4,3769.3,0.4758]
[1753579610117,1.992,3769.4,3769.3,1.7344]
[1753579610319,21.231,3769.4,3769.3,4.9422]
[1753579611421,0.4938,3769.9,3769.8,1.7344]
[1753579611621,21.7258,3769.9,3769.8,1.7344]
[1753579612321,22.1933,3769.9,3769.8,1.7344]
[1753579613223,23.22393,3769.9,3769.8,1.7344]
[1753579613422,23.22393,3769.9,3769.8,1.4483]
[1753579614325,23.53343,3769.9,3769.8,0.2866]
[1753579614520,23.53343,3769.9,3769.8,1.4483]
[1753579614725,1.4616,3769.9,3769.8,1.7344]
[1753579615027,22.6926,3769.9,3769.8,1.7344]
[1753579615719,22.2251,3769.9,3769.8,1.7344]
[1753579616023,22.2251,3769.9,3769.4,3.2078]
[1753579616024,38.201,3770.1,3770.0,0.6915]
[1753579616224,59.724,3770.1,3770.0,1.7344]
[1753579616823,60.2543,3770.1,3770.0,1.7344]
[1753579617323,1.68486,3769.7,3769.6,0.2866]
[1753579617526,2.2696,3769.4,3769.3,3.6883]
[1753579617825,23.4986,3769.4,3769.3,3.6883]
[1753579618022,23.4986,3769.4,3769.3,3.9839]
[1753579618517,23.4986,3769.4,3769.3,0.7761]
[1753579619328,23.4986,3769.4,3769.3,1.2268]
[1753579620130,23.4986,3769.4,3769.3,0.7761]
[1753579620430,23.4986,3769.4,3769.0,1.2268]
[1753579620431,1.22504,3769.1,3769.0,1.2268]
[1753579620731,23.49864,3769.1,3769.0,1.4262]
[1753579620924,23.20884,3769.1,3769.0,1.7099]
[1753579621429,22.6784,3769.1,3769.0,1.7099]
[1753579622229,23.20884,3769.1,3769.0,1.7099]
[1753579625431,23.49864,3769.1,3769.0,1.2268]
[1753579625932,23.20884,3769.1,3769.0,1.7099]
[1753579626124,23.20884,3769.1,3769.0,1.4262]
[1753579626332,23.49864,3769.1,3769.0,0.7761]
[1753579626529,1.22506,3769.0,3768.9,3.2078]
[1753579626729,2.26966,3769.0,3768.9,3.6883]
[1753579627135,2.26966,3769.0,3768.9,3.9839]
[1753579627336,2.26966,3769.0,3768.9,4.4346]
[1753579628538,2.26966,3769.0,3768.9,0.2914]
[1753579629038,1.22513,3768.5,3768.4,0.2914]
[1753579629233,23.49773,3768.5,3768.4,0.2914]
[1753579629436,1.22516,3768.3,3768.2,0.2914]
[1753579629733,0.5306,3768.0,3767.9,3.2078]
[1753579629939,1.22521,3767.9,3767.8,0.48779848]
[1753579630139,2.26981,3767.9,3767.8,0.48779848]
[1753579633642,2.26981,3767.9,3767.8,0.19639848]
[1753579633838,0.6946,3767.4,3767.3,0.2914]
[1753579634141,1.22531,3767.2,3767.1,0.2914]
[1753579634338,23.49891,3767.2,3767.1,0.2914]
[1753579634932,22.9682,3767.2,3767.1,0.4805]
[1753579635132,22.9682,3767.2,3767.1,1.2268]
[1753579635341,0.9984,3767.6,3767.5,1.7099]
[1753579635539,21.738,3767.6,3767.5,1.7099]
[1753579635843,22.6804,3767.6,3767.5,1.7099]
[1753579638142,23.21105,3767.6,3767.5,1.7099]
[1753579638348,22.6804,3767.6,3767.5,1.7099]
[1753579639237,22.9702,3767.6,3767.5,0.2914]
[1753579639544,1.51508,3767.4,3767.0,0.7421]
[1753579639733,1.4494,3767.1,3767.0,2.24064]
[1753579639932,3.2078,3767.8,3766.9,3.2078]
[1753579639933,0.507,3767.5,3767.4,2.24058]
[1753579640146,22.6814,3767.5,3767.4,2.24058]
[1753579640646,22.9712,3767.5,3767.4,1.95688]
[1753579641251,22.9712,3767.5,3767.4,0.7761]
[1753579641453,22.9712,3767.5,3767.4,1.30678]
[1753579641844,22.9712,3767.5,3767.4,1.75748]
[1753579642047,22.9712,3767.5,3767.4,1.2268]
[1753579642547,0.53076,3766.9,3766.7,0.2914]
[1753579642744,0.6946,3766.7,3766.6,0.6398]
[1753579642944,1.7392,3766.7,3766.6,0.9354]
[1753579643345,2.26998,3766.7,3766.6,1.2268]
[1753579643545,1.7392,3766.7,3766.6,1.2268]
[1753579643752,1.98018,3766.7,3766.6,1.7099]
[1753579644952,2.26998,3766.7,3766.6,1.4262]
[1753579645545,2.26998,3766.7,3766.6,1.7099]
[1753579645746,1.4494,3766.7,3766.6,1.7099]
[1753579646450,1.98018,3766.7,3766.6,1.7099]
[1753579646750,2.26998,3766.7,3766.6,0.2914]
[1753579646949,2.26998,3766.7,3766.6,0.4805]
[1753579647452,2.26998,3766.7,3766.6,0.7761]
[1753579647749,2.26998,3766.7,3766.6,1.2175]
[1753579647948,2.26998,3766.7,3766.6,1.4169]
[1753579648142,1.98018,3766.7,3766.6,1.7224]
[1753579649247,2.28348,3766.7,3766.6,1.2175]
[1753579651445,2.28348,3766.7,3766.6,0.4805]
[1753579651754,2.25872,3766.4,3766.3,0.3099]
[1753579651958,23.49372,3766.4,3766.3,0.5073]
[1753579652346,23.49372,3766.4,3766.3,1.2621]
[1753579653347,3.2078,3766.5,3766.4,0.53082]
[1753579653550,0.53077,3766.8,3766.7,0.719]
[1753579653856,22.25177,3766.8,3766.7,0.719]
[1753579654047,22.73447,3766.8,3766.7,1.5676]
[1753579654246,23.19137,3766.8,3766.7,1.7758]
[1753579655955,23.49467,3766.8,3766.7,1.4703]
[1753579656561,2.25871,3766.5,3766.4,0.3099]
[1753579656858,23.49471,3766.5,3766.4,0.3099]
[1753579657745,2.25875,3766.2,3766.1,0.5073]
[1753579657952,2.25879,3765.9,3765.8,1.01720278]
[1753579658155,23.49379,3765.9,3765.8,1.01720278]
[1753579658551,23.49379,3765.9,3765.8,1.45860278]
[1753579659558,23.19049,3765.9,3765.8,1.97230278]
[1753579659861,22.73359,3765.9,3765.8,1.97230278]
[1753579660257,3.8801,3766.5,3766.4,0.719]
[1753579660459,26.39921,3766.5,3766.4,1.7758]
[1753579662164,26.70251,3766.5,3766.4,1.4703]
[1753579662958,5.46651,3766.5,3766.4,0.8207]
[1753579663165,26.40021,3766.5,3766.4,1.7758]
[1753579665864,26.70351,3766.5,3766.4,0.8207]
[1753579666057,26.70351,3766.5,3766.4,1.0289]
[1753579666264,26.70351,3766.5,3766.4,0.8207]
[1753579667458,1.20315,3766.2,3766.1,1.2621]
[1753579667760,23.19245,3766.2,3766.1,1.4703]
[1753579667964,1.95545,3766.2,3766.1,1.7758]
[1753579668160,23.19245,3766.2,3766.1,1.7758]
[1753579676059,23.49575,3766.2,3766.1,0.3099]
[1753579676666,23.49575,3766.2,3766.1,0.5073]
[1753579677868,23.49575,3766.2,3766.1,0.3099]
[1753579678867,23.49575,3766.2,3766.1,1.444]
[1753579679070,23.49575,3766.2,3766.1,1.7269]
[1753579679266,23.19245,3766.2,3766.1,1.7269]
[1753579680369,23.19045,3766.2,3766.1,1.7269]
[1753579682572,22.25085,3766.2,3766.1,1.7269]
[1753579683864,22.70845,3766.2,3766.1,1.7269]
[1753579684472,23.18975,3766.2,3766.1,1.7269]
[1753579687272,23.48085,3766.2,3766.1,1.7269]
[1753579687769,23.48085,3766.2,3766.1,0.8175]
[1753579687970,23.48085,3766.2,3766.1,0.3099]
[1753579688475,1.20679,3765.9,3765.8,1.42310278]
[1753579688670,23.47459,3765.9,3765.8,0.19650278]
[1753579688870,23.47459,3765.9,3765.8,0.68190278]
[1753579689064,23.47459,3765.9,3765.8,1.11150278]
[1753579689266,2.24159,3765.9,3765.8,1.62000278]
[1753579689472,23.18449,3765.9,3765.8,1.90290278]
[1753579689671,22.72689,3765.9,3765.8,1.90290278]
[1753579689973,0.72549,3765.9,3765.8,1.90290278]
[1753579690174,21.76489,3765.9,3765.8,1.90290278]
[1753579690774,3.2078,3766.0,3765.8,1.90290278]
[1753579690972,21.233,3765.9,3765.8,1.90290278]
[1753579692374,21.233,3765.9,3765.8,1.43190278]
[1753579692863,21.76389,3765.9,3765.8,1.43190278]
[1753579693067,21.76389,3765.9,3765.8,2.43380278]
[1753579693267,21.233,3765.9,3765.8,2.43380278]
[1753579693474,21.76389,3765.9,3765.8,2.43380278]
[1753579693868,0.53089,3765.9,3765.8,2.43380278]
[1753579694075,0.53079,3766.6,3766.5,0.7045]
[1753579694275,21.76279,3766.6,3766.5,1.7064]
[1753579695474,22.04889,3766.6,3766.5,1.7064]
[1753579695674,21.76279,3766.6,3766.5,1.7064]
[1753579696376,22.04889,3766.6,3766.5,1.7064]
[1753579696676,21.5181,3766.6,3766.5,2.23721]
[1753579697571,0.2861,3766.8,3766.6,1.0019]
[1753579697772,0.2861,3766.8,3766.7,2.23717]
[1753579698076,21.231,3766.8,3766.7,2.23717]
[1753579698480,21.231,3766.8,3766.7,5.44497]
[1753579699281,0.81686,3766.9,3766.8,2.23717]
[1753579699480,22.04686,3766.9,3766.8,2.23717]
[1753579699882,22.24146,3766.9,3766.8,2.23717]
[1753579700179,0.4807,3766.9,3766.8,2.23717]
[1753579700377,1.01145,3766.9,3766.8,1.7064]
[1753579700574,22.24145,3766.9,3766.8,1.7064]
[1753579700778,22.69905,3766.9,3766.8,1.7064]
[1753579701075,1.46905,3766.9,3766.8,1.7064]
[1753579701381,23.17835,3766.9,3766.8,1.7064]
[1753579701582,1.95035,3766.9,3766.8,1.7064]
[1753579701783,23.17835,3766.9,3766.8,1.7064]
[1753579703586,23.46945,3766.9,3766.8,1.7064]
[1753579704586,22.6476,3766.9,3766.8,1.7064]
[1753579705387,22.6476,3766.9,3766.8,2.23717]
[1753579705582,0.2861,3766.9,3766.8,2.23717]
[1753579705789,41.4368,3767.2,3767.1,1.23522]
[1753579706089,62.6628,3767.2,3767.1,2.23712]
[1753579706288,62.9489,3767.2,3767.1,2.23712]
[1753579706684,62.9489,3767.2,3767.1,1.7064]
[1753579706884,63.93721,3767.2,3767.1,1.7064]
[1753579707284,63.93621,3767.2,3767.1,1.7064]
[1753579708184,42.71121,3767.2,3767.1,1.7064]
[1753579708389,63.93621,3767.2,3767.1,1.7064]
[1753579709388,2.28009,3765.9,3765.5,3.59494855]
[1753579709588,23.50409,3765.9,3765.5,0.2942]
[1753579709790,23.50409,3765.9,3765.8,0.38550278]
[1753579709990,23.50409,3765.9,3765.8,0.67970278]
[1753579712993,23.50409,3765.9,3765.8,1.41960278]
[1753579713294,23.19789,3765.9,3765.8,1.91550278]
[1753579714496,21.6795,3765.9,3765.8,1.91550278]
[1753579714897,22.21039,3765.9,3765.8,1.91550278]
[1753579715396,23.45289,3765.9,3765.8,1.91550278]
[1753579715997,22.2739,3765.9,3765.8,1.91550278]
[1753579716197,21.9767,3765.9,3765.8,1.91550278]
[1753579716398,22.50759,3765.9,3765.8,1.91550278]
[1753579717900,23.45289,3765.9,3765.8,1.91550278]
[1753579718402,23.75909,3765.9,3765.8,1.12050278]
[1753579718597,23.45289,3765.9,3765.8,1.91550278]
[1753579719297,22.922,3765.9,3765.8,1.91550278]
[1753579719693,22.922,3765.9,3765.8,2.44641278]
[1753579720093,0.9453,3766.3,3766.2,0.4881]
[1753579720293,23.42484,3766.3,3766.2,1.719]
[1753579720700,0.7472,3766.4,3766.2,1.21615]
[1753579720899,0.5308,3766.6,3766.4,0.53081]
[1753579721197,1.22658,3766.7,3766.6,0.984]
[1753579721394,22.67558,3766.7,3766.6,0.984]
[1753579721598,1.443,3766.7,3766.6,2.24979]
[1753579721794,0.7472,3767.1,3767.0,1.4203]
[1753579722002,23.65221787,3767.1,3767.0,1.4203]
[1753579722199,22.894,3767.1,3767.0,1.4203]
[1753579722399,22.444,3767.1,3767.0,2.24974]
[1753579723100,22.444,3767.1,3767.0,1.719]
[1753579723305,23.42472,3767.1,3767.0,1.719]
[1753579725395,22.894,3767.1,3767.0,2.24974]
[1753579725600,22.894,3767.1,3767.0,1.719]
[1753579726001,22.894,3767.1,3767.0,2.24974]
[1753579726503,21.451,3767.1,3767.0,2.24974]
[1753579726907,0.9477,3767.2,3767.1,1.2309]
[1753579727105,1.97371,3767.2,3767.1,1.719]
[1753579728607,1.97371,3767.2,3767.1,2.24972]
[1753579728807,0.4977,3767.2,3767.1,2.24972]
[1753579729497,0.9477,3767.2,3767.1,2.24972]
[1753579732413,0.4977,3767.2,3767.1,2.24972]
[1753579733514,1.97371,3767.2,3767.1,2.24972]
[1753579733814,1.443,3767.2,3767.1,2.24972]
[1753579734414,1.97371,3767.2,3767.1,2.24972]
[1753579737210,1.443,3767.2,3767.1,2.24972]
[1753579739315,1.97371,3767.2,3767.1,2.24972]
[1753579740019,1.443,3767.2,3767.1,2.24972]
[1753579740315,1.97371,3767.2,3767.1,2.24972]
[1753579741419,1.443,3767.2,3767.1,2.24972]
[1753579741619,1.97371,3767.2,3767.1,2.24972]
[1753579742214,1.443,3767.2,3767.1,2.24972]
[1753579742422,0.4977,3767.2,3767.1,2.24972]
[1753579742920,0.9538,3767.2,3767.1,2.24972]
[1753579743718,1.2485,3767.2,3767.1,2.24972]
[1753579744017,1.4479,3767.2,3767.1,2.24972]
[1753579747122,0.6946,3767.2,3766.8,6.7035]
[1753579747318,0.6946,3767.2,3765.3,2.6549]
[1753579747319,1.02489,3766.6,3766.5,0.3127]
[1753579747519,23.08,3766.6,3766.5,1.34631]
[1753579747718,1.437,3766.9,3766.8,1.23647]
[1753579747918,22.79,3766.9,3766.8,2.27167]
[1753579748119,23.32075,3766.9,3766.8,2.27167]
[1753579748417,22.79,3766.9,3766.8,2.27167]
[1753579749022,23.32075,3766.9,3766.8,2.27167]
[1753579749223,22.79,3766.9,3766.8,2.27167]
[1753579749722,21.8398,3766.9,3766.8,5.47947]
[1753579749927,22.5906,3766.9,3766.8,5.47947]
[1753579750225,1.437,3766.9,3766.8,5.47947]
[1753579753121,0.4561,3767.1,3767.0,0.53074]
[1753579753426,0.2955,3767.1,3767.0,2.27164]
[1753579753927,0.4868,3767.1,3767.0,2.27164]
[1753579755428,0.9429,3767.1,3767.0,2.27164]
[1753579756623,1.1415,3767.4,3767.3,0.7057]
[1753579756826,22.4805,3767.4,3767.3,2.2716]
[1753579757227,22.776,3767.4,3767.3,2.2716]
[1753579759827,1.437,3767.4,3767.3,2.2716]
[1753579760038,22.763,3767.4,3767.3,2.2716]
[1753579760534,1.727,3767.4,3767.3,1.7843]
[1753579761323,0.6474,3767.8,3767.7,1.3028]
[1753579761527,21.9684,3767.8,3767.7,5.47934]
[1753579761826,0.4868,3767.8,3767.7,5.47934]
[1753579762025,1.437,3768.1,3768.0,1.2363]
[1753579762230,22.766,3768.1,3768.0,2.2715]
[1753579764238,1.80152,3767.8,3767.7,3.2078]
[1753579764435,1.2161,3767.3,3767.2,4.02641]
[1753579764731,23.05,3767.3,3767.2,4.02641]
[1753579765433,23.5807,3767.3,3767.2,3.4957]
[1753579765631,23.05,3767.3,3767.2,3.4957]
[1753579765933,23.05,3767.3,3767.2,4.02641]
[1753579766334,23.05,3767.3,3767.2,3.4957]
[1753579766735,23.05,3767.3,3767.2,4.02641]
[1753579767238,23.05,3767.3,3767.2,0.3127]
[1753579768139,23.05,3767.3,3767.2,0.84341]
[1753579768437,23.05,3767.3,3767.2,1.80191]
[1753579768734,23.05,3767.3,3767.2,1.2712]
[1753579768937,23.58069,3767.3,3767.2,1.2712]
[1753579771141,23.58069,3767.3,3767.2,0.5035]
[1753579771543,23.58069,3767.3,3767.2,1.2508]
[1753579772838,0.53072,3767.1,3767.0,3.2078]
[1753579773044,23.59242,3767.1,3767.0,0.2828]
[1753579774446,23.59242,3767.1,3767.0,0.472]
[1753579775449,23.59242,3767.1,3767.0,0.2828]
[1753579777952,23.59242,3767.1,3767.0,0.472]
[1753579779653,23.59242,3767.1,3767.0,1.2193]
[1753579780442,23.59242,3767.1,3767.0,1.7096]
[1753579780650,23.28202,3767.1,3767.0,1.7096]
[1753579781251,23.28202,3767.1,3767.0,2.24034]
[1753579781648,0.5116,3767.4,3767.3,2.2403]
[1753579781854,21.8086,3767.4,3767.3,2.2403]
[1753579782749,1.04224,3767.7,3767.6,2.24025]
[1753579782954,21.8096,3767.7,3767.6,2.24025]
[1753579783149,22.2338,3767.7,3767.6,2.24025]
[1753579783548,23.26194,3767.7,3767.6,2.24025]
[1753579784952,1.4333,3767.7,3767.6,2.24025]
[1753579785455,22.7243,3767.7,3767.6,2.24025]
[1753579786156,1.4333,3767.7,3767.6,2.24025]
[1753579786356,22.7233,3767.7,3767.6,2.24025]
[1753579786757,23.25394,3767.7,3767.6,1.7096]
[1753579787257,22.7233,3767.7,3767.6,1.7096]
[1753579787459,22.7233,3767.7,3767.6,2.24025]
[1753579787658,23.0337,3767.7,3767.6,2.24025]
[1753579788256,23.56434,3767.7,3767.6,1.7096]
[1753579788758,23.0337,3767.7,3767.6,2.24025]
[1753579788959,1.7437,3767.7,3767.6,1.7096]
[1753579789158,23.0227,3767.7,3767.6,2.24025]
[1753579789357,1.23198,3767.4,3767.3,0.9277]
[1753579789555,23.55338,3767.4,3767.3,0.9277]
[1753579789955,23.55338,3767.4,3767.3,1.2193]
[1753579790458,23.0227,3767.4,3767.3,1.75]
[1753579790960,23.0227,3767.4,3767.3,1.9488]
[1753579791260,23.55338,3767.4,3767.3,1.7096]
[1753579792559,23.55338,3767.4,3767.3,1.4181]
[1753579793761,23.55338,3767.4,3767.3,1.2193]
[1753579795957,0.53072,3767.1,3767.0,0.6449]
[1753579796260,1.23207,3766.8,3766.7,4.1195]
[1753579796562,1.23207,3766.8,3766.7,1.2193]
[1753579796563,23.54147,3766.8,3766.7,1.2193]
[1753579796963,22.7003,3766.8,3766.7,2.24038]
[1753579797264,22.2761,3766.8,3766.7,2.24038]
[1753579797459,21.7786,3766.8,3766.7,2.24038]
[1753579797658,0.3128,3767.0,3766.9,1.741]
[1753579797858,23.54984,3767.0,3766.9,1.2378]
[1753579798058,23.54984,3767.0,3766.9,0.792]
[1753579798460,23.54984,3767.0,3766.9,0.4811]
[1753579799664,23.54984,3767.0,3766.9,0.9269]
[1753579799866,23.54984,3767.0,3766.9,1.2378]
[1753579800668,1.4627,3767.0,3766.9,1.741]
[1753579800960,21.5708,3767.0,3766.9,1.741]
[1753579801161,22.2277,3767.0,3766.9,1.741]
[1753579801361,22.7207,3767.0,3766.9,1.741]
[1753579802666,23.25144,3767.0,3766.9,1.741]
[1753579802863,23.54384,3767.0,3766.9,1.4276]
[1753579803468,1.7551,3766.8,3766.5,0.4458]
[1753579803670,0.9811,3766.3,3766.2,4.1532]
[1753579803971,22.78694,3766.3,3766.2,4.1532]
[1753579804164,23.56094,3766.3,3766.2,3.7074]
[1753579804365,23.56094,3766.3,3766.2,3.6889]
[1753579805863,23.56094,3766.3,3765.9,0.4458]
[1753579805864,0.53088,3766.0,3765.9,0.4458]
[1753579806070,23.56198,3766.0,3765.9,0.4811]
[1753579806670,23.56198,3766.0,3765.9,1.2378]
[1753579806972,23.26958,3766.0,3765.9,1.741]
[1753579807464,22.7387,3766.0,3765.9,1.741]
[1753579807660,23.26958,3766.0,3765.9,1.741]
[1753579808265,23.56198,3766.0,3765.9,1.2378]
[1753579810974,23.56198,3766.0,3765.9,0.4811]
[1753579811575,23.56198,3766.0,3765.9,0.2924]
[1753579811970,2.28599,3765.9,3765.8,0.19650278]
[1753579812168,5.49379,3765.9,3765.8,0.19650278]
[1753579812867,5.49379,3765.9,3765.8,1.43430278]
[1753579813063,26.46839,3765.9,3765.8,1.93750278]
[1753579813263,26.46539,3765.9,3765.8,1.93750278]
[1753579813472,1.4627,3765.9,3765.8,1.93750278]
[1753579813673,23.26459,3765.9,3765.8,1.93750278]
[1753579814774,23.55699,3765.9,3765.8,1.93750278]
[1753579815273,23.26459,3765.9,3765.8,1.93750278]
[1753579815474,23.25859,3765.9,3765.8,1.93750278]
[1753579815880,23.55099,3765.9,3765.8,1.93750278]
[1753579816177,23.55099,3765.9,3765.8,1.62410278]
[1753579816571,1.2579,3765.9,3765.8,1.93750278]
[1753579816869,23.05179,3765.9,3765.8,1.93750278]
[1753579817065,23.05179,3765.9,3765.8,2.46841278]
[1753579817066,1.2579,3765.9,3765.8,2.46841278]
[1753579817268,21.7695,3765.9,3765.8,1.93750278]
[1753579817468,21.7695,3765.9,3765.8,2.46841278]
[1753579818976,22.2307,3765.9,3765.8,2.46841278]
[1753579819178,23.25459,3765.9,3765.8,1.93750278]
[1753579819673,23.54699,3765.9,3765.8,1.93750278]
[1753579820276,23.54699,3765.9,3765.8,1.62410278]
[1753579821776,23.54699,3765.9,3765.8,0.48890278]
[1753579822479,23.54699,3765.9,3765.8,1.43430278]
[1753579822979,23.54699,3765.9,3765.8,1.74770278]
[1753579823178,23.54699,3765.9,3765.8,2.46841278]
[1753579823179,0.5085,3765.9,3765.8,2.46841278]
[1753579823373,21.7695,3765.9,3765.8,2.46841278]
[1753579824573,22.76159,3765.9,3765.8,2.46841278]
[1753579824981,22.2307,3765.9,3765.8,2.46841278]
[1753579825479,22.76159,3765.9,3765.8,2.46841278]
[1753579825880,22.2307,3765.9,3765.8,2.46841278]
[1753579826979,22.7237,3765.9,3765.8,2.46841278]
[1753579827374,23.25459,3765.9,3765.8,1.93750278]
[1753579828684,23.56509,3765.9,3765.8,1.93750278]
[1753579829086,23.0342,3765.9,3765.8,2.46841278]
[1753579829488,22.7237,3765.9,3765.8,2.46841278]
[1753579829690,23.25459,3765.9,3765.8,1.93750278]
[1753579829894,23.56509,3765.9,3765.8,1.93750278]
[1753579830194,23.0342,3765.9,3765.8,2.46841278]
[1753579830690,22.7237,3765.9,3765.8,2.46841278]
[1753579831392,23.56509,3765.9,3765.8,1.93750278]
[1753579831782,0.2014,3764.5,3763.8,0.1966072]
[1753579831986,0.53118,3763.9,3763.8,0.1966072]
[1753579832185,21.93918,3763.9,3763.8,0.1966072]
[1753579832391,26.408,3763.9,3763.1,0.3038]
[1753579832592,3.73907,3763.2,3763.1,0.3038]
[1753579832792,25.18507,3763.2,3763.1,0.8096]
[1753579833088,1.04407,3762.5,3762.4,1.4267]
[1753579833393,1.0441,3762.3,3762.2,0.32770589]
[1753579833689,22.5061,3762.3,3762.2,0.01860589]
[1753579835889,38.246,3763.0,3762.9,0.6868]
[1753579836087,60.2383,3763.0,3762.9,1.7305]
[1753579836283,60.5421,3763.0,3762.9,1.7305]
[1753579836486,60.0108,3763.0,3762.9,1.7305]
[1753579836695,38.246,3763.0,3762.9,1.7305]
[1753579836894,59.711,3763.0,3762.9,5.29856855]
[1753579837087,1.04388,3763.9,3763.8,0.6868]
[1753579837396,0.7401,3763.7,3763.6,1.2997]
[1753579837593,22.5189,3763.7,3763.6,1.2997]
[1753579837791,21.9877,3763.7,3763.6,1.2997]
[1753579837990,21.9857,3763.7,3763.6,1.33620063]
[1753579838291,21.9857,3763.7,3763.6,0.03650063]
[1753579838491,25.7227,3763.7,3763.6,0.03650063]
[1753579838692,25.7227,3763.7,3763.6,1.76700063]
[1753579838693,22.5149,3763.7,3763.6,1.76700063]
[1753579839395,22.5149,3763.7,3763.6,1.33620063]
[1753579839895,22.5149,3763.7,3763.6,1.13950063]
[1753579840094,22.5159,3763.7,3763.6,0.03650063]
[1753579840295,22.5159,3763.7,3763.6,0.64940063]
[1753579840496,21.6809,3763.7,3763.6,1.76700063]
[1753579840693,38.256,3764.1,3763.7,1.0437]